{"text_format":"1","workbook":"xlsx","n_sheets":4,"sheets":["ВСЯ ОБУВЬ","ОБУВЬ ДЛЯ РАБОЧИХ","ОБУВЬ ДЛЯ СИЛОВЫХ СТРУКТУР","ОБУВЬ ДЛЯ ОХОТНИКОВ, ТУРИСТОВ"],"not_rendered":{"charts":0,"images":81,"macros":0,"external_links":0,"defined_names":1,"comments":0,"pivot_tables":0},"unopened":[],"bounds":{"document_bytes":16777216,"sheet_cells":100000,"rows_first":2000,"rows_last":500,"rows_between":2000,"halvings":0,"cell_chars":16384,"cell_head_chars":4096},"cells_cut":0,"cells_raw":0,"read":"whole","date_system":"1900"}

{"sheet":"ВСЯ ОБУВЬ","index":0,"n_rows":179,"n_cols":44,"rows_kept":179,"cut":false,"hidden":false,"merged":[[0,10,3,11],[24,8,27,8],[77,7,80,7],[109,4,112,4],[24,1,28,1],[105,8,108,8],[91,8,93,8],[88,3,90,3],[73,8,76,8],[47,7,48,7],[21,8,23,8],[59,8,63,8],[68,4,70,4],[39,1,42,1],[35,1,38,1],[68,1,70,1],[50,7,55,7],[8,1,23,1],[18,7,20,7],[24,4,25,4],[94,7,98,7],[73,1,80,1],[77,8,80,8],[88,7,90,7],[165,0,178,0],[21,7,23,7],[73,3,76,3],[94,1,101,1],[91,4,93,4],[68,3,70,3],[86,0,115,0],[114,3,115,3],[102,4,104,4],[73,7,76,7],[86,1,86,9],[88,8,90,8],[73,4,76,4],[94,3,98,3],[82,1,83,1],[116,6,118,6],[146,5,147,5],[146,7,147,7],[129,4,130,4],[121,6,123,6],[102,8,104,8],[140,1,142,1],[154,3,156,3],[154,4,156,4],[157,7,159,7],[157,1,159,1],[157,6,159,6],[148,8,149,8],[148,5,149,5],[148,6,149,6],[148,7,149,7],[146,8,147,8],[146,3,147,3],[148,1,149,1],[157,8,159,8],[157,3,159,3],[154,6,156,6],[154,7,156,7],[169,4,170,4],[169,5,170,5],[157,4,159,4],[133,4,135,4],[133,5,135,5],[133,6,135,6],[121,7,123,7],[140,8,142,8],[144,1,144,9],[169,1,170,1],[154,1,156,1],[169,8,170,8],[169,7,170,7],[169,6,170,6],[137,6,139,6],[137,5,139,5],[137,7,139,7],[146,1,147,1],[148,4,149,4],[146,4,147,4],[146,6,147,6],[164,0,164,9],[144,0,163,0],[154,8,156,8],[129,8,130,8],[124,8,126,8],[140,6,142,6],[129,6,130,6],[137,8,139,8],[129,5,130,5],[133,7,135,7],[59,7,63,7],[59,3,63,3],[121,8,123,8],[121,5,123,5],[134,8,135,8],[129,7,130,7],[140,4,142,4],[140,7,142,7],[131,0,143,0],[119,0,130,0],[137,1,139,1],[124,7,126,7],[88,1,93,1],[137,4,139,4],[121,4,123,4],[64,1,66,1],[102,6,108,6],[88,4,90,4],[91,6,93,6],[99,4,101,4],[109,6,112,6],[91,3,93,3],[88,6,90,6],[94,6,98,6],[102,3,108,3],[102,7,108,7],[99,6,101,6],[116,7,118,7],[119,1,119,9],[99,7,101,7],[114,7,115,7],[109,3,110,3],[54,4,55,4],[45,1,49,1],[35,5,38,5],[50,1,55,1],[77,3,80,3],[77,4,80,4],[85,0,85,9],[68,8,70,8],[5,0,54,0],[5,1,5,9],[59,1,63,1],[39,3,42,3],[45,4,46,4],[30,8,32,8],[35,8,38,8],[39,7,42,7],[8,4,11,4],[21,6,22,6],[18,4,20,4],[64,8,66,8],[21,3,23,3],[30,7,32,7],[45,3,46,3],[56,1,56,9],[64,3,66,3],[35,3,38,3],[59,4,61,4],[64,4,65,4],[30,3,32,3],[50,3,55,3],[50,6,55,6],[64,7,66,7],[62,4,63,4],[26,4,27,4],[30,1,32,1],[10,5,11,5],[12,3,17,3],[12,5,14,5],[15,5,17,5],[18,8,20,8],[8,5,9,5],[24,6,27,6],[12,7,17,7],[21,4,23,4],[24,3,28,3],[18,3,20,3],[116,1,118,1],[99,3,101,3],[111,3,112,3],[124,1,126,1],[109,1,112,1],[102,1,108,1],[116,4,118,4],[109,8,112,8],[4,0,4,9],[8,7,11,7],[35,7,38,7],[39,8,42,8],[56,0,84,0],[8,8,11,8],[68,7,70,7],[47,8,48,8],[50,8,55,8],[47,4,48,4],[12,8,17,8],[24,7,27,7],[47,3,48,3],[12,4,17,4],[39,5,42,5],[8,3,11,3],[0,6,3,9],[105,4,108,4],[91,7,93,7],[50,4,51,4],[52,4,53,4],[94,8,98,8],[94,4,98,4],[99,8,101,8],[133,1,135,1],[114,4,115,4],[114,6,115,6],[125,5,126,5],[124,4,126,4],[129,1,130,1],[131,1,131,9],[124,6,126,6],[127,1,128,1],[114,8,115,8],[114,1,115,1],[116,8,118,8],[109,7,112,7],[116,3,118,3],[125,3,126,3],[121,1,123,1]]}
[null,null,null,null,null,null," e-mail: 3379677@mail.ru.ru                                                             8 (029) 688 42 29                                                                                                                                                                                                              8 (29) 337 96 77\n8 (017) 360-16-38\n"]
[]
[]
[]
["Обувь для рабочих"]
["Серия \"Стандарт\"","Серия \"Стандарт\""]
[null,"Ботинки"]
[null,null,"модель","материал верха","подошва","подкладка","подносок","метод крепления","размеры",">500 пар",null,"Цена, руб. ","Цена без НДС"]
[null,null,"12","КОЖА","ПУ","MESH","МЕТАЛЛ","ЛИТЬЕВОЙ","36-47",600,{"$f":"J9/11800","v":5.0847457627118647E-2},{"$f":"K9*10000","v":508.47457627118649},25.574000000000002,null,null,null,null,null,null,null,null,null,null,null,null,null,null,null,null,null,null,null,null,null,null,null,null,null,null,null,null,null,null,23.68]
[null,null,"13",null,null,null,"ТЕРМОПЛАСТ",null,null,565,{"$f":"J10/11800","v":4.7881355932203391E-2},478.81355932203394,24.084,null,null,null,null,null,null,null,null,null,null,null,null,null,null,null,null,null,null,null,null,null,null,null,null,null,null,null,null,null,null,22.3]
[null,null,"14",null,null,"ИСК МЕХ","МЕТАЛЛ",null,null,645,5.4661016949152541E-2,546.61016949152543,27.497,null,null,null,null,null,null,null,null,null,null,null,null,null,null,null,null,null,null,null,null,null,null,null,null,null,null,null,null,null,null,25.46]
[null,null,"13М",null,null,null,"ТЕРМОПЛАСТ",null,null,630,5.3389830508474574E-2,533.89830508474574,26.86,null,null,null,null,null,null,null,null,null,null,null,null,null,null,null,null,null,null,null,null,null,null,null,null,null,null,null,null,null,null,24.87]
[null,null,"12/1","КОЖА","ПУ/ПУ","MESH","МЕТАЛЛ","ЛИТЬЕВОЙ","36-47",650,5.5084745762711863E-2,550.84745762711862,27.713000000000001,null,null,null,null,null,null,null,null,null,null,null,null,null,null,null,null,null,null,null,null,null,null,null,null,null,null,null,null,null,null,25.66]
[null,null,"12/1К",null,null,null,"КОМПОЗИТ",null,null,710,6.0169491525423731E-2,601.69491525423734,30.262,null,null,null,null,null,null,null,null,null,null,null,null,null,null,null,null,null,null,null,null,null,null,null,null,null,null,null,null,null,null,28.02]
[null,null,"13/1",null,null,null,"ТЕРМОПЛАСТ",null,null,605,5.1271186440677963E-2,512.71186440677968,25.79,null,null,null,null,null,null,null,null,null,null,null,null,null,null,null,null,null,null,null,null,null,null,null,null,null,null,null,null,null,null,23.88]
[null,null,"14/1",null,null,"ИСК МЕХ","МЕТАЛЛ",null,null,695,5.8898305084745764E-2,588.98305084745766,29.623999999999999,null,null,null,null,null,null,null,null,null,null,null,null,null,null,null,null,null,null,null,null,null,null,null,null,null,null,null,null,null,null,27.43]
[null,null,"14/1К",null,null,null,"КОМПОЗИТ",null,null,755,6.3983050847457631E-2,639.83050847457628,32.183999999999997,null,null,null,null,null,null,null,null,null,null,null,null,null,null,null,null,null,null,null,null,null,null,null,null,null,null,null,null,null,null,29.8]
[null,null,"13/1М",null,null,null,"ТЕРМОПЛАСТ",null,null,705,5.9745762711864409E-2,597.45762711864404,30.056000000000001,null,null,null,null,null,null,null,null,null,null,null,null,null,null,null,null,null,null,null,null,null,null,null,null,null,null,null,null,null,null,27.83]
[null,null,"12Т","КОЖА","ПУ/ТПУ","MESH","МЕТАЛЛ","ЛИТЬЕВОЙ","37-47",745,6.3135593220338987E-2,631.3559322033899,31.763000000000002,null,null,null,null,null,null,null,null,null,null,null,null,null,null,null,null,null,null,null,null,null,null,null,null,null,null,null,null,null,null,29.41]
[null,null,"13Т",null,null,"MESH","ТЕРМОПЛАСТ",null,null,700,5.9322033898305086E-2,593.22033898305085,29.84,null,null,null,null,null,null,null,null,null,null,null,null,null,null,null,null,null,null,null,null,null,null,null,null,null,null,null,null,null,null,27.63]
[null,null,"14Т",null,null,"ИСК МЕХ","МЕТАЛЛ",null,null,805,6.8220338983050841E-2,682.2033898305084,34.311999999999998,null,null,null,null,null,null,null,null,null,null,null,null,null,null,null,null,null,null,null,null,null,null,null,null,null,null,null,null,null,null,31.77]
[null,null,"12Р","КОЖА","ПУ/НИТРИЛ","MESH","МЕТАЛЛ","ЛИТЬЕВОЙ","37-47",785,6.6525423728813565E-2,665.25423728813564,33.457999999999998,null,null,null,null,null,null,null,null,null,null,null,null,null,null,null,null,null,null,null,null,null,null,null,null,null,null,null,null,null,null,30.98]
[null,null,"14Р",null,null,"ИСК МЕХ",null,null,null,860,7.2881355932203393E-2,728.81355932203394,36.655000000000001,null,null,null,null,null,null,null,null,null,null,null,null,null,null,null,null,null,null,null,null,null,null,null,null,null,null,null,null,null,null,33.94]
[null,null,"112РНМ",null,null,"НАТ МЕХ","КОМПОЗИТ",null,null,1610,0.13644067796610168,1364.4067796610168,68.634,null,null,null,null,null,null,null,null,null,null,null,null,null,null,null,null,null,null,null,null,null,null,null,null,null,null,null,null,null,null,63.55]
[null,null,"28","КОЖА","ПУ","MESH","МЕТАЛЛ","ЛИТЬЕВОЙ","36-47",705,5.9745762711864409E-2,597.45762711864404,30.056000000000001,null,null,null,null,null,null,null,null,null,null,null,null,null,null,null,null,null,null,null,null,null,null,null,null,null,null,null,null,null,null,27.83]
[null,null,"28М",null,null,"ИСК МЕХ",null,null,null,755,6.3983050847457631E-2,639.83050847457628,32.183999999999997,null,null,null,null,null,null,null,null,null,null,null,null,null,null,null,null,null,null,null,null,null,null,null,null,null,null,null,null,null,null,29.8]
[null,null,"28/1",null,"ПУ/ПУ","MESH",null,null,null,785,6.6525423728813565E-2,665.25423728813564,33.457999999999998,null,null,null,null,null,null,null,null,null,null,null,null,null,null,null,null,null,null,null,null,null,null,null,null,null,null,null,null,null,null,30.98]
[null,null,"28/1М",null,null,"ИСК МЕХ",null,null,null,835,7.0762711864406774E-2,707.62711864406776,35.597000000000001,null,null,null,null,null,null,null,null,null,null,null,null,null,null,null,null,null,null,null,null,null,null,null,null,null,null,null,null,null,null,32.96]
[null,null,"28РНМ-1",null,"НИТРИЛ","ШЕРСТИН","КОМПОЗИТ","ЛИТЬЕВОЙ","37-47",1110,9.4067796610169493E-2,940.67796610169489,47.314999999999998,null,null,null,null,null,null,null,null,null,null,null,null,null,null,null,null,null,null,null,null,null,null,null,null,null,null,null,null,null,null,43.81]
[null,null,"24","КОЖА","ПУ/НИТРИЛ","CAMBRELLE","МЕТАЛЛ","ЛИТЬЕВОЙ","40-47",935,7.923728813559322E-2,792.37288135593224,39.851999999999997,null,null,null,null,null,null,null,null,null,null,null,null,null,null,null,null,null,null,null,null,null,null,null,null,null,null,null,null,null,null,36.9]
[null,null,"29","КОЖА","ПУ","CAMBRELLE","МЕТАЛЛ","ЛИТЬЕВОЙ","39-47",985,8.3474576271186443E-2,834.74576271186447,41.99,null,null,null,null,null,null,null,null,null,null,null,null,null,null,null,null,null,null,null,null,null,null,null,null,null,null,null,null,null,null,38.880000000000003]
[null,null,"29-0",null,"ПУ","CAMBRELLE","ТЕРМОПЛАСТ",null,null,955,8.0932203389830509E-2,809.32203389830511,40.704999999999998,null,null,null,null,null,null,null,null,null,null,null,null,null,null,null,null,null,null,null,null,null,null,null,null,null,null,null,null,null,null,37.69]
[null,null,"29РНМ-1",null,"ПУ/НИТРИЛ","ШЕРСТИН","МЕТАЛЛ",null,null,1460,0.12372881355932204,1237.2881355932204,62.24,null,null,null,null,null,null,null,null,null,null,null,null,null,null,null,null,null,null,null,null,null,null,null,null,null,null,null,null,null,null,57.63]
[null,"Полуботинки, сандалии",null,null,null,null,null,null,null,null,0,0]
[null,null,"модель","материал верха","подошва","подкладка","подносок","метод крепления","размеры",">500 пар",{"$error":"#VALUE!"},{"$error":"#VALUE!"},"Цена без НДС"]
[null,null,23,"КОЖА","ПУ","3D AIR-MESH","МЕТАЛЛ","ЛИТЬЕВОЙ","36-47",630,5.3389830508474574E-2,533.89830508474574,26.86,null,null,null,null,null,null,null,null,null,null,null,null,null,null,null,null,null,null,null,null,null,null,null,null,null,null,null,null,null,null,24.87]
[null,null,"23-0",null,"ПУ",null,"ТЕРМОПЛАСТ",null,null,610,5.1694915254237285E-2,516.94915254237287,26.006,null,null,null,null,null,null,null,null,null,null,null,null,null,null,null,null,null,null,null,null,null,null,null,null,null,null,null,null,null,null,24.08]
[null,null,"23/1",null,"ПУ/ПУ",null,"МЕТАЛЛ",null,null,710,6.0169491525423731E-2,601.69491525423734,30.262,null,null,null,null,null,null,null,null,null,null,null,null,null,null,null,null,null,null,null,null,null,null,null,null,null,null,null,null,null,null,28.02]
[null,null,"23Т",null,"ПУ/ТПУ",null,"МЕТАЛЛ",null,null,775,6.5677966101694921E-2,656.77966101694926,33.036999999999999,null,null,null,null,null,null,null,null,null,null,null,null,null,null,null,null,null,null,null,null,null,null,null,null,null,null,null,null,null,null,30.59]
[null,null,"21                   ","КОЖА","ПУ","3D AIR-MESH","МЕТАЛЛ","ЛИТЬЕВОЙ","36-47",635,5.3813559322033896E-2,538.13559322033893,27.065000000000001,null,null,null,null,null,null,null,null,null,null,null,null,null,null,null,null,null,null,null,null,null,null,null,null,null,null,null,null,null,null,25.06]
[null,null,"21-0",null,"ПУ",null,"ТЕРМОПЛАСТ",null,null,600,5.0847457627118647E-2,{"$f":"K41*10000","v":508.47457627118649},25.574000000000002,null,null,null,null,null,null,null,null,null,null,null,null,null,null,null,null,null,null,null,null,null,null,null,null,null,null,null,null,null,null,23.68]
[null,null,"21/1",null,"ПУ/ПУ",null,"МЕТАЛЛ",null,null,715,6.0593220338983053E-2,605.93220338983053,30.478000000000002,null,null,null,null,null,null,null,null,null,null,null,null,null,null,null,null,null,null,null,null,null,null,null,null,null,null,null,null,null,null,28.22]
[null,null,"21Т",null,"ПУ/ТПУ",null,"МЕТАЛЛ",null,null,780,6.6101694915254236E-2,661.01694915254234,33.253,null,null,null,null,null,null,null,null,null,null,null,null,null,null,null,null,null,null,null,null,null,null,null,null,null,null,null,null,null,null,30.79]
[null,"Сапоги",null,null,null,null,null,null,null,null,0,0]
[null,null,"модель","материал верха","подошва","подкладка","подносок","метод крепления","размеры",">500 пар",{"$error":"#VALUE!"},{"$error":"#VALUE!"},"Цена без НДС"]
[null,null,"15-0И","КОЖА,\nКИРЗА","ПУ",null,"ТЕРМОПЛАСТ",null,"39-47",645,5.4661016949152541E-2,546.61016949152543,27.497,null,null,null,null,null,null,null,null,null,null,null,null,null,null,null,null,null,null,null,null,null,null,null,null,null,null,null,null,null,null,25.46]
[null,null,"15-0М",null,null,"ИСК МЕХ","ТЕРМОПЛАСТ","ЛИТЬЕВОЙ","39-47",725,6.1440677966101698E-2,614.40677966101703,30.91,null,null,null,null,null,null,null,null,null,null,null,null,null,null,null,null,null,null,null,null,null,null,null,null,null,null,null,null,null,null,28.62]
[null,null,"15К","КОЖА,\nВИНИЛИСКОЖА","ПУ","CAMBRELLE","МЕТАЛЛ","ЛИТЬЕВОЙ","36-47",685,5.8050847457627119E-2,580.50847457627117,29.202999999999999,null,null,null,null,null,null,null,null,null,null,null,null,null,null,null,null,null,null,null,null,null,null,null,null,null,null,null,null,null,null,27.04]
[null,null,"15КМ",null,null,"ИСК МЕХ","МЕТАЛЛ",null,null,765,6.4830508474576276E-2,648.30508474576277,32.604999999999997,null,null,null,null,null,null,null,null,null,null,null,null,null,null,null,null,null,null,null,null,null,null,null,null,null,null,null,null,null,null,30.19]
[null,null,"15РНМ","КОЖА","ПУ/НИТРИЛ","НАТ МЕХ","КОМПОЗИТ","ЛИТЬЕВОЙ","39-47",1960,0.16610169491525423,1661.0169491525423,83.549000000000007,null,null,null,null,null,null,null,null,null,null,null,null,null,null,null,null,null,null,null,null,null,null,null,null,null,null,null,null,null,null,77.36]
[null,null,"16","КОЖА","ПУ","MESH","МЕТАЛЛ","ЛИТЬЕВОЙ","36-47",870,7.3728813559322037E-2,737.28813559322032,37.087000000000003,null,null,null,null,null,null,null,null,null,null,null,null,null,null,null,null,null,null,null,null,null,null,null,null,null,null,null,null,null,null,34.340000000000003]
[null,null,"16М",null,null,"ИСК МЕХ",null,null,null,920,7.796610169491526E-2,779.66101694915255,39.215000000000003,null,null,null,null,null,null,null,null,null,null,null,null,null,null,null,null,null,null,null,null,null,null,null,null,null,null,null,null,null,null,36.31]
[null,null,"16/1",null,"ПУ/ПУ","MESH",null,null,null,935,7.923728813559322E-2,792.37288135593224,39.851999999999997,null,null,null,null,null,null,null,null,null,null,null,null,null,null,null,null,null,null,null,null,null,null,null,null,null,null,null,null,null,null,36.9]
[null,null,"16/1М",null,null,"ИСК МЕХ",null,null,null,990,8.3898305084745758E-2,838.98305084745755,42.206000000000003,null,null,null,null,null,null,null,null,null,null,null,null,null,null,null,null,null,null,null,null,null,null,null,null,null,null,null,null,null,null,39.08]
[null,null,"16Т",null,"ПУ/ТПУ","CAMBRELLE",null,null,null,1030,8.7288135593220337E-2,872.88135593220341,43.902000000000001,null,null,null,null,null,null,null,null,null,null,null,null,null,null,null,null,null,null,null,null,null,null,null,null,null,null,null,null,null,null,40.65]
[null,null,"16ТМ",null,null,"ИСК МЕХ",null,null,null,1080,9.152542372881356E-2,915.25423728813564,46.04,null,null,null,null,null,null,null,null,null,null,null,null,null,null,null,null,null,null,null,null,null,null,null,null,null,null,null,null,null,null,42.63]
["Серия \"Профессионал\"","Серия \"Профессионал\"",null,null,null,null,null,null,null,null,0,0]
[null,"Ботинки",null,null,null,null,null,null,null,null,0,0]
[null,null,"модель","материал верха","подошва","подкладка","подносок","метод крепления","размеры",">500 пар",{"$error":"#VALUE!"},{"$error":"#VALUE!"},"Цена без НДС"]
[null,null,"17","ЛИЦЕВА КОЖА,\nCORDURA","ПУ/ТПУ","CAMBRELLE","КОМПОЗИТ","ЛИТЬЕВОЙ","37-47",1315,0.1114406779661017,1114.406779661017,56.052,null,null,null,null,null,null,null,null,null,null,null,null,null,null,null,null,null,null,null,null,null,null,null,null,null,null,null,null,null,null,51.9]
[null,null,"17М",null,null,"ИСК МЕХ","КОМПОЗИТ",null,null,1370,0.11610169491525424,1161.0169491525423,58.396000000000001,null,null,null,null,null,null,null,null,null,null,null,null,null,null,null,null,null,null,null,null,null,null,null,null,null,null,null,null,null,null,54.07]
[null,null,"17НМ",null,null,"НАТ МЕХ","КОМПОЗИТ",null,null,1805,0.15296610169491526,1529.6610169491526,76.938999999999993,null,null,null,null,null,null,null,null,null,null,null,null,null,null,null,null,null,null,null,null,null,null,null,null,null,null,null,null,null,null,71.239999999999995]
[null,null,"17РМ",null,"ПУ/НИТРИЛ","ИСК МЕХ","КОМПОЗИТ",null,null,1415,0.11991525423728813,1199.1525423728813,60.317999999999998,null,null,null,null,null,null,null,null,null,null,null,null,null,null,null,null,null,null,null,null,null,null,null,null,null,null,null,null,null,null,55.85]
[null,null,"17РНМ",null,null,"НАТ МЕХ","КОМПОЗИТ",null,null,1855,0.15720338983050847,1572.0338983050847,79.078000000000003,null,null,null,null,null,null,null,null,null,null,null,null,null,null,null,null,null,null,null,null,null,null,null,null,null,null,null,null,null,null,73.22]
[null,null,"22Р","ЛИЦЕВАЯ КОЖА","ПУ/НИТРИЛ","MESH","МЕТАЛЛ","ЛИТЬЕВОЙ","37-47",1355,0.11483050847457626,1148.3050847457625,57.758000000000003,null,null,null,null,null,null,null,null,null,null,null,null,null,null,null,null,null,null,null,null,null,null,null,null,null,null,null,null,null,null,53.48]
[null,null,"22РНМ",null,null,"НАТ МЕХ","КОМПОЗИТ",null,null,2205,0.18686440677966101,1868.6440677966102,93.992000000000004,null,null,null,null,null,null,null,null,null,null,null,null,null,null,null,null,null,null,null,null,null,null,null,null,null,null,null,null,null,null,87.03]
[null,null,"22-0",null,"ПУ/ТПУ","MESH","ТЕРМОПЛАСТ",null,null,1175,9.9576271186440676E-2,995.76271186440681,50.09,null,null,null,null,null,null,null,null,null,null,null,null,null,null,null,null,null,null,null,null,null,null,null,null,null,null,null,null,null,null,46.38]
[null,null,"26НМ","ЛИЦЕВАЯ КОЖА, ПОЛИЭСТЕР","ПУ/ТПУ","НАТ МЕХ","МЕТАЛЛ","ЛИТЬЕВОЙ","37-47",2095,0.17754237288135594,1775.4237288135594,89.305000000000007,null,null,null,null,null,null,null,null,null,null,null,null,null,null,null,null,null,null,null,null,null,null,null,null,null,null,null,null,null,null,82.69]
[null,null,"27","ЛИЦЕВА КОЖА,\nCORDURA","ПУ/ТПУ","MESH","МЕТАЛЛ","ЛИТЬЕВОЙ","37-47",1395,0.11822033898305084,1182.2033898305085,59.465000000000003,null,null,null,null,null,null,null,null,null,null,null,null,null,null,null,null,null,null,null,null,null,null,null,null,null,null,null,null,null,null,55.06]
[null,null,"27-0",null,null,"MESH","ТЕРМОПЛАСТ",null,null,1185,0.10042372881355932,1004.2372881355932,50.512,null,null,null,null,null,null,null,null,null,null,null,null,null,null,null,null,null,null,null,null,null,null,null,null,null,null,null,null,null,null,46.77]
[null,null,"27М",null,null,"ИСК МЕХ","МЕТАЛЛ",null,null,1515,0.12838983050847458,1283.8983050847457,64.584000000000003,null,null,null,null,null,null,null,null,null,null,null,null,null,null,null,null,null,null,null,null,null,null,null,null,null,null,null,null,null,null,59.8]
[null,"Сапоги",null,null,null,null,null,null,null,null,0,0]
[null,null,"модель","материал верха","подошва","подкладка","подносок","метод крепления","размеры",">500 пар",{"$error":"#VALUE!"},{"$f":"K73*10000","v":{"$error":"#VALUE!"}},"Цена без НДС"]
[null,null,"18","ЛИЦЕВАЯ КОЖА","ПУ/ТПУ","CAMBRELLE","КОМПОЗИТ","ЛИТЬЕВОЙ","37-47",1415,{"$f":"J74/11800","v":0.11991525423728813},1199.1525423728813,60.317999999999998,null,null,null,null,null,null,null,null,null,null,null,null,null,null,null,null,null,null,null,null,null,null,null,null,null,null,null,null,null,null,55.85]
[null,null,"18М",null,null,"ИСК МЕХ","КОМПОЗИТ",null,null,1530,0.12966101694915255,1296.6101694915255,65.221000000000004,null,null,null,null,null,null,null,null,null,null,null,null,null,null,null,null,null,null,null,null,null,null,null,null,null,null,null,null,null,null,60.39]
[null,null,"18НМ-1",null,null,"ШЕРСТИН","КОМПОЗИТ",null,null,1920,0.16271186440677965,1627.1186440677966,81.841999999999999,null,null,null,null,null,null,null,null,null,null,null,null,null,null,null,null,null,null,null,null,null,null,null,null,null,null,null,null,null,null,75.78]
[null,null,"18НМ",null,null,"НАТ МЕХ","КОМПОЗИТ",null,null,2365,0.20042372881355933,2004.2372881355932,100.82,null,null,null,null,null,null,null,null,null,null,null,null,null,null,null,null,null,null,null,null,null,null,null,null,null,null,null,null,null,null,93.35]
[null,null,"18Р","ЛИЦЕВАЯ КОЖА","ПУ/НИТРИЛ","CAMBRELLE","КОМПОЗИТ","ЛИТЬЕВОЙ","37-47",1465,0.12415254237288136,1241.5254237288136,62.445999999999998,null,null,null,null,null,null,null,null,null,null,null,null,null,null,null,null,null,null,null,null,null,null,null,null,null,null,null,null,null,null,57.82]
[null,null,"18РМ",null,null,"ИСК МЕХ","КОМПОЗИТ",null,null,1650,0.13983050847457626,1398.3050847457625,70.34,null,null,null,null,null,null,null,null,null,null,null,null,null,null,null,null,null,null,null,null,null,null,null,null,null,null,null,null,null,null,65.13]
[null,null,"18РНМ-1",null,null,"ШЕРСТИН","КОМПОЗИТ",null,null,1970,0.16694915254237289,1669.4915254237289,83.980999999999995,null,null,null,null,null,null,null,null,null,null,null,null,null,null,null,null,null,null,null,null,null,null,null,null,null,null,null,null,null,null,77.760000000000005]
[null,null,"18РНМ",null,null,"НАТ МЕХ","КОМПОЗИТ",null,null,2485,0.21059322033898306,2105.9322033898306,105.93,null,null,null,null,null,null,null,null,null,null,null,null,null,null,null,null,null,null,null,null,null,null,null,null,null,null,null,null,null,null,98.08]
[null,null,"20","ПУ ELASTOPAN","ПУ ELASTOPAN","ТРИКОТАЖ","МЕТАЛЛ","ЛИТЬЕВОЙ","40-46",925,7.8389830508474576E-2,783.89830508474574,39.430999999999997,null,null,null,null,null,null,null,null,null,null,null,null,null,null,null,null,null,null,null,null,null,null,null,null,null,null,null,null,null,null,36.51]
[null,null,"7042","CORDURA","ЛИТАЯ РЕЗИНОВАЯ ГАЛОША"," ВКЛАДНОЙ ЧУЛОК\n3М THINSULATE 400gr","МЕТАЛЛ","СТРОЧЕЧНО-ЛИТЬЕВОЙ","40-47",2725,0.2309322033898305,2309.3220338983051,116.16,null,null,null,null,null,null,null,null,null,null,null,null,null,null,null,null,null,null,null,null,null,null,null,null,null,null,null,null,null,null,107.56]
[null,null,"7042К","CORDURA","ЛИТАЯ РЕЗИНОВАЯ ГАЛОША"," ВКЛАДНОЙ ЧУЛОК\n3М THINSULATE 400gr","КОМПОЗИТ","СТРОЧЕЧНО-ЛИТЬЕВОЙ","40-47",2810,0.23813559322033898,2381.3559322033898,119.78,null,null,null,null,null,null,null,null,null,null,null,null,null,null,null,null,null,null,null,null,null,null,null,null,null,null,null,null,null,null,110.91]
[null,null,"7116","ТЕКСТИЛЬ CHECKER","ЛИТАЯ РЕЗИНОВАЯ ГАЛОША"," ВКЛАДНОЙ ЧУЛОК\n3М THINSULATE 400gr","КОМПОЗИТ","СТРОЧЕЧНО-ЛИТЬЕВОЙ","39-47",3015,0.25550847457627118,2555.0847457627119,128.52000000000001,null,null,null,null,null,null,null,null,null,null,null,null,null,null,null,null,null,null,null,null,null,null,null,null,null,null,null,null,null,null,119]
["Обувь для силовых структур",null,null,null,null,null,null,null,null,null,0,0]
["Серия \"Витязь\"","Серия \"Витязь\"",null,null,null,null,null,null,null,null,0,0]
[null,null,"модель","материал верха","подошва","подкладка","подносок","метод крепления","размеры",">500 пар",{"$error":"#VALUE!"},{"$error":"#VALUE!"},"Цена без НДС"]
[null,null,"А1","ЛИЦЕВАЯ КОЖА","РЕЗИНА","CAMBRELLE","ТЕРМОПЛАСТ","КЛЕЕВОЙ","39-47",1505,0.12754237288135592,1275.4237288135591,64.152000000000001,null,null,null,null,null,null,null,null,null,null,null,null,null,null,null,null,null,null,null,null,null,null,null,null,null,null,null,null,null,null,59.4]
[null,null,"А1М",null,null,"ИСК МЕХ",null,null,null,1610,0.13644067796610168,1364.4067796610168,68.634,null,null,null,null,null,null,null,null,null,null,null,null,null,null,null,null,null,null,null,null,null,null,null,null,null,null,null,null,null,null,63.55]
[null,null,"А1НМ",null,null,"НАТ МЕХ",null,null,null,1980,0.16779661016949152,1677.9661016949151,84.402000000000001,null,null,null,null,null,null,null,null,null,null,null,null,null,null,null,null,null,null,null,null,null,null,null,null,null,null,null,null,null,null,78.150000000000006]
[null,null,"А2","ЛИЦЕВАЯ КОЖА","РЕЗИНА","CAMBRELLE","ТЕРМОПЛАСТ","КЛЕЕВОЙ","39-47",1325,0.11228813559322035,1122.8813559322034,56.484000000000002,null,null,null,null,null,null,null,null,null,null,null,null,null,null,null,null,null,null,null,null,null,null,null,null,null,null,null,null,null,null,52.3]
[null,null,"А2М",null,null,"ИСК МЕХ",null,null,null,1545,0.1309322033898305,1309.3220338983049,65.858000000000004,null,null,null,null,null,null,null,null,null,null,null,null,null,null,null,null,null,null,null,null,null,null,null,null,null,null,null,null,null,null,60.98]
[null,null,"А2НМ",null,null,"НАТ МЕХ",null,null,null,1950,0.1652542372881356,1652.542372881356,83.128,null,null,null,null,null,null,null,null,null,null,null,null,null,null,null,null,null,null,null,null,null,null,null,null,null,null,null,null,null,null,76.97]
[null,null,65,"ЛИЦЕВАЯ КОЖА","РЕЗИНА","CAMBRELLE","ТЕРМОПЛАСТ","КЛЕЕПРОШИВ","39-47",1290,0.10932203389830508,1093.2203389830509,54.994,null,null,null,null,null,null,null,null,null,null,null,null,null,null,null,null,null,null,null,null,null,null,null,null,null,null,null,null,null,null,50.92]
[null,null,"А65К",null,null,"КОЖА",null,null,null,1475,0.125,1250,62.878,null,null,null,null,null,null,null,null,null,null,null,null,null,null,null,null,null,null,null,null,null,null,null,null,null,null,null,null,null,null,58.22]
[null,null,"65НМ1",null,null,"ШЕРСТИН",null,null,null,1435,0.12161016949152542,1216.1016949152543,61.170999999999999,null,null,null,null,null,null,null,null,null,null,null,null,null,null,null,null,null,null,null,null,null,null,null,null,null,null,null,null,null,null,56.64]
[null,null,"А65НМ",null,null,"НАТ МЕХ",null,null,null,1825,0.15466101694915255,1546.6101694915255,77.792000000000002,null,null,null,null,null,null,null,null,null,null,null,null,null,null,null,null,null,null,null,null,null,null,null,null,null,null,null,null,null,null,72.03]
[null,null,"65М",null,null,"ИСК МЕХ",null,null,null,1370,0.11610169491525424,1161.0169491525423,58.396000000000001,null,null,null,null,null,null,null,null,null,null,null,null,null,null,null,null,null,null,null,null,null,null,null,null,null,null,null,null,null,null,54.07]
[null,null,"64","КОЖА","ТЭП","СПАНБОНД","ТЕРМОПЛАСТ","КЛЕЕПРОШИВ","39-47",1060,8.9830508474576271E-2,898.30508474576266,45.186999999999998,null,null,null,null,null,null,null,null,null,null,null,null,null,null,null,null,null,null,null,null,null,null,null,null,null,null,null,null,null,null,41.84]
[null,null,"64М",null,null,"ИСК МЕХ",null,null,null,1160,9.8305084745762716E-2,983.05084745762713,49.453000000000003,null,null,null,null,null,null,null,null,null,null,null,null,null,null,null,null,null,null,null,null,null,null,null,null,null,null,null,null,null,null,45.79]
[null,null,"64НМ-1",null,null,"ШЕРСТИН",null,null,null,1225,0.1038135593220339,1038.1355932203389,52.218000000000004,null,null,null,null,null,null,null,null,null,null,null,null,null,null,null,null,null,null,null,null,null,null,null,null,null,null,null,null,null,null,48.35]
[null,null,"68Т","ЛИЦЕВАЯ КОЖА","ТЭП \"TRACTION\"","CAMBRELLE","ТЕРМОПЛАСТ","КЛЕЕПРОШИВ","36-47",1290,0.10932203389830508,1093.2203389830509,54.994,null,null,null,null,null,null,null,null,null,null,null,null,null,null,null,null,null,null,null,null,null,null,null,null,null,null,null,null,null,null,50.92]
[null,null,"68ТМ",null,null,"ИСК МЕХ",null,null,null,1335,0.11313559322033899,1131.3559322033898,56.905000000000001,null,null,null,null,null,null,null,null,null,null,null,null,null,null,null,null,null,null,null,null,null,null,null,null,null,null,null,null,null,null,52.69]
[null,null,"68ТНМ",null,null,"НАТ МЕХ",null,null,null,1790,0.15169491525423728,{"$f":"K105*10000","v":1516.9491525423728},76.302000000000007,null,null,null,null,null,null,null,null,null,null,null,null,null,null,null,null,null,null,null,null,null,null,null,null,null,null,null,null,null,null,70.650000000000006]
[null,null,"68У",null,"ТЭП \"RAMPON\"","CAMBRELLE",null,null,"39-47",1275,0.10805084745762712,1080.5084745762713,54.345999999999997,null,null,null,null,null,null,null,null,null,null,null,null,null,null,null,null,null,null,null,null,null,null,null,null,null,null,null,null,null,null,50.32]
[null,null,"68",null,null,"CAMBRELLE",null,null,null,1205,0.10211864406779661,1021.1864406779661,51.365000000000002,null,null,null,null,null,null,null,null,null,null,null,null,null,null,null,null,null,null,null,null,null,null,null,null,null,null,null,null,null,null,47.56]
[null,null,"68М",null,null,"ИСК МЕХ",null,null,null,1255,0.10635593220338983,1063.5593220338983,53.503,null,null,null,null,null,null,null,null,null,null,null,null,null,null,null,null,null,null,null,null,null,null,null,null,null,null,null,null,null,null,49.54]
[null,null,"68НМ",null,null,"НАТ МЕХ",null,null,null,1745,0.14788135593220339,1478.8135593220338,74.39,null,null,null,null,null,null,null,null,null,null,null,null,null,null,null,null,null,null,null,null,null,null,null,null,null,null,null,null,null,null,68.88]
[null,null,"А71","ЛИЦЕВАЯ КОЖА","РЕЗИНА","КОЖА","ТЕРМОПЛАСТ","КЛЕЕПРОШИВ","39-47",1545,0.1309322033898305,1309.3220338983049,65.858000000000004,null,null,null,null,null,null,null,null,null,null,null,null,null,null,null,null,null,null,null,null,null,null,null,null,null,null,null,null,null,null,60.98]
[null,null,"А71НМ",null,null,"НАТ МЕХ",null,null,null,1895,0.16059322033898304,1605.9322033898304,80.784000000000006,null,null,null,null,null,null,null,null,null,null,null,null,null,null,null,null,null,null,null,null,null,null,null,null,null,null,null,null,null,null,74.8]
[null,null,"А71К","КОЖА \"КРАСТ\"",null,"КОЖА",null,null,null,1715,0.14533898305084747,1453.3898305084747,73.105000000000004,null,null,null,null,null,null,null,null,null,null,null,null,null,null,null,null,null,null,null,null,null,null,null,null,null,null,null,null,null,null,67.69]
[null,null,"А71КНМ",null,null,"НАТ МЕХ",null,null,null,2035,0.17245762711864407,1724.5762711864406,86.745999999999995,null,null,null,null,null,null,null,null,null,null,null,null,null,null,null,null,null,null,null,null,null,null,null,null,null,null,null,null,null,null,80.319999999999993]
[null,null,"В03К","ЛИЦЕВАЯ КОЖА","РЕЗИНА","НЕТ","ТЕРМОПЛАСТ","КЛЕЕВОЕ","39-47",1580,0.13389830508474576,1338.9830508474577,67.349000000000004,null,null,null,null,null,null,null,null,null,null,null,null,null,null,null,null,null,null,null,null,null,null,null,null,null,null,null,null,null,null,62.36]
[null,null,"Р005","ЛИЦЕВАЯ КОЖА","РЕЗИНА","КОЖА","ТЕРМОПЛАСТ","РАНТО-КЛЕЕВОЙ","39-47",1650,0.13983050847457626,1398.3050847457625,70.34,null,null,null,null,null,null,null,null,null,null,null,null,null,null,null,null,null,null,null,null,null,null,null,null,null,null,null,null,null,null,65.13]
[null,null,"Р005НМ",null,null,"НАТ МЕХ",null,null,null,1930,0.16355932203389831,1635.593220338983,82.274000000000001,null,null,null,null,null,null,null,null,null,null,null,null,null,null,null,null,null,null,null,null,null,null,null,null,null,null,null,null,null,null,76.180000000000007]
[null,null,"62","ЛИЦЕВАЯ КОЖА","РЕЗИНА","CAMBRELLE","ТЕРМОПЛАСТ","КЛЕЕПРОШИВ","39-47",1120,9.4915254237288138E-2,949.15254237288138,47.747,null,null,null,null,null,null,null,null,null,null,null,null,null,null,null,null,null,null,null,null,null,null,null,null,null,null,null,null,null,null,44.21]
[null,null,"62М",null,null,"ИСК МЕХ",null,null,null,1345,0.11398305084745762,1139.8305084745762,57.337000000000003,null,null,null,null,null,null,null,null,null,null,null,null,null,null,null,null,null,null,null,null,null,null,null,null,null,null,null,null,null,null,53.09]
[null,null,"62НМ",null,null,"НАТ МЕХ",null,null,null,1570,0.13305084745762713,1330.5084745762713,66.927999999999997,null,null,null,null,null,null,null,null,null,null,null,null,null,null,null,null,null,null,null,null,null,null,null,null,null,null,null,null,null,null,61.97]
["Серия \"Гвардия\"","Серия \"Гвардия\"",null,null,null,null,null,null,null,null,0,0]
[null,null,"модель","материал верха","подошва","подкладка","подносок","метод крепления","размеры",">500 пар",{"$error":"#VALUE!"},{"$error":"#VALUE!"},"Цена без НДС"]
[null,null,"48","КОЖА \"КРАСТ\", CORDURA","ПУ","CAMBRELLE","ТЕРМОПЛАСТ","КЛЕЕВОЙ","39-45",1355,0.11483050847457626,1148.3050847457625,57.758000000000003,null,null,null,null,null,null,null,null,null,null,null,null,null,null,null,null,null,null,null,null,null,null,null,null,null,null,null,null,null,null,53.48]
[null,null,"048","ХРОМОВАЯ КОЖА, CORDURA",null,null,null,null,null,1355,0.11483050847457626,1148.3050847457625,57.758000000000003,null,null,null,null,null,null,null,null,null,null,null,null,null,null,null,null,null,null,null,null,null,null,null,null,null,null,null,null,null,null,53.48]
[null,null,"49","КОЖА \"КРАСТ\", КОЖА",null,null,null,null,null,1380,0.11694915254237288,1169.4915254237289,58.828000000000003,null,null,null,null,null,null,null,null,null,null,null,null,null,null,null,null,null,null,null,null,null,null,null,null,null,null,null,null,null,null,54.47]
[null,null,"138","ЗАМША, ПОЛИЭСТЕР","РЕЗИНА","CAMBRELLE","ГРАНИТОЛЬ","КЛЕЕВОЙ","39-47",1475,0.125,1250,62.878,null,null,null,null,null,null,null,null,null,null,null,null,null,null,null,null,null,null,null,null,null,null,null,null,null,null,null,null,null,null,58.22]
[null,null,"139","КОЖА, ПОЛИЭСТЕР",null,"CAMBRELLE, ПОРОЛОН",null,null,null,1475,0.125,1250,62.878,null,null,null,null,null,null,null,null,null,null,null,null,null,null,null,null,null,null,null,null,null,null,null,null,null,null,null,null,null,null,58.22]
[null,null,"140",null,null,null,null,null,null,1515,0.12838983050847458,1283.8983050847457,64.584000000000003,null,null,null,null,null,null,null,null,null,null,null,null,null,null,null,null,null,null,null,null,null,null,null,null,null,null,null,null,null,null,59.8]
[null,null,"А105/1","КОЖА \"КРАСТ\"","РЕЗИНА","КОЖА","ТЕРМОПЛАСТ","КЛЕЕПРОШИВ","39-47",1965,0.16652542372881357,1665.2542372881358,83.765000000000001,null,null,null,null,null,null,null,null,null,null,null,null,null,null,null,null,null,null,null,null,null,null,null,null,null,null,null,null,null,null,77.56]
[null,null,"А105/2НМ","КОЖА \"КРАСТ\"","РЕЗИНА","НАТ МЕХ","ТЕРМОПЛАСТ","КЛЕЕПРОШИВ","39-47",2305,0.19533898305084746,1953.3898305084747,98.257999999999996,null,null,null,null,null,null,null,null,null,null,null,null,null,null,null,null,null,null,null,null,null,null,null,null,null,null,null,null,null,null,90.98]
[null,null,"А101","ЛИЦЕВАЯ КОЖА, CORDURA","ТЭП","CAMBRELLE","ТЕРМОПЛАСТ","КЛЕЕПРОШИВ","39-47",1400,0.11864406779661017,1186.4406779661017,59.680999999999997,null,null,null,null,null,null,null,null,null,null,null,null,null,null,null,null,null,null,null,null,null,null,null,null,null,null,null,null,null,null,55.26]
[null,null,"А103","ЛИЦЕВАЯ КОЖА, CORDURA (КАМ)",null,null,null,null,null,1410,0.11949152542372882,1194.9152542372881,60.101999999999997,null,null,null,null,null,null,null,null,null,null,null,null,null,null,null,null,null,null,null,null,null,null,null,null,null,null,null,null,null,null,55.65]
["Серия \"Полевые\"","Серия \"Полевые\"",null,null,null,null,null,null,null,null,0,0]
[null,null,"модель","материал верха","подошва","подкладка","подносок","метод крепления","размеры",">500 пар",{"$error":"#VALUE!"},{"$error":"#VALUE!"},"Цена без НДС"]
[null,null,"А107","ЛИЦЕВАЯ КОЖА, CORDURA","ТЭП","НЕТ","ТЕРМОПЛАСТ","КЛЕЕПРОШИВ","36-47",1165,9.8728813559322032E-2,987.28813559322032,49.658000000000001,null,null,null,null,null,null,null,null,null,null,null,null,null,null,null,null,null,null,null,null,null,null,null,null,null,null,null,null,null,null,45.98]
[null,null,"А107/1","ЛИЦЕВАЯ КОЖА, ТКАНЬ (ЦИФРА)",null,null,null,null,"39-47",1215,0.10296610169491525,1029.6610169491526,51.796999999999997,null,null,null,null,null,null,null,null,null,null,null,null,null,null,null,null,null,null,null,null,null,null,null,null,null,null,null,null,null,null,47.96]
[null,null,"А107/4","ЛИЦЕВАЯ КОЖА, CORDURA",null,null,null,null,null,1165,9.8728813559322032E-2,987.28813559322032,49.658000000000001,null,null,null,null,null,null,null,null,null,null,null,null,null,null,null,null,null,null,null,null,null,null,null,null,null,null,null,null,null,null,45.98]
[null,null,"107Л","КОЖА","ПУ","НЕТ","ТЕРМОПЛАСТ","ЛИТЬЕВОЙ","39-47",830,7.0338983050847459E-2,{"$f":"K137*10000","v":703.38983050847457},35.381,null,null,null,null,null,null,null,null,null,null,null,null,null,null,null,null,null,null,null,null,null,null,null,null,null,null,null,null,null,null,32.76]
[null,null,"А61/5","ЛИЦЕВАЯ КОЖА, ТКАНЬ (ЦИФРА)","ТЭП","CAMBRELLE","ТЕРМОПЛАСТ","КЛЕЕПРОШИВ","39-47",1180,{"$f":"J138/11800","v":0.1},1000,50.305999999999997,null,null,null,null,null,null,null,null,null,null,null,null,null,null,null,null,null,null,null,null,null,null,null,null,null,null,null,null,null,null,46.58]
[null,null,"А61/51","ЛИЦЕВАЯ КОЖА, ТКАНЬ (КАМ)",null,null,null,null,null,1180,0.1,1000,50.305999999999997,null,null,null,null,null,null,null,null,null,null,null,null,null,null,null,null,null,null,null,null,null,null,null,null,null,null,null,null,null,null,46.58]
[null,null,"А61/6","ЛИЦЕВАЯ КОЖА, CORDURA",null,null,null,null,null,1160,9.8305084745762716E-2,983.05084745762713,49.453000000000003,null,null,null,null,null,null,null,null,null,null,null,null,null,null,null,null,null,null,null,null,null,null,null,null,null,null,null,null,null,null,45.79]
[null,null,"198","КОЖА,\nCORDURA","РЕЗИНА","НЕТ","ТЕРМОПЛАСТ","ГОРЯЧАЯ ВУЛКАНИЗАЦИЯ","39-47",980,8.3050847457627114E-2,830.50847457627117,41.774000000000001,null,null,null,null,null,null,null,null,null,null,null,null,null,null,null,null,null,null,null,null,null,null,null,null,null,null,null,null,null,null,38.68]
[null,null,"199","КОЖА",null,"НЕТ",null,null,null,1310,0.11101694915254237,1110.1694915254236,55.847000000000001,null,null,null,null,null,null,null,null,null,null,null,null,null,null,null,null,null,null,null,null,null,null,null,null,null,null,null,null,null,null,51.71]
[null,null,"199М","ЛИЦЕВАЯ КОЖА",null,"ИСК МЕХ",null,null,null,1595,0.13516949152542374,1351.6949152542375,67.997,null,null,null,null,null,null,null,null,null,null,null,null,null,null,null,null,null,null,null,null,null,null,null,null,null,null,null,null,null,null,62.96]
[null,null,"61/3","КОЖА, КИРЗА","СТИРОНИП",null,"ТЕРМОПЛАСТ","КЛЕЕПРОШИВ","39-47",865,7.3305084745762708E-2,733.05084745762713,36.871000000000002,null,null,null,null,null,null,null,null,null,null,null,null,null,null,null,null,null,null,null,null,null,null,null,null,null,null,null,null,null,null,34.14]
["Серия \"Офицер\"","Серия \"Офицер\"",null,null,null,null,null,null,null,null,0,0]
[null,null,"модель","материал верха","подошва","подкладка","подносок","метод крепления","размеры",">500 пар",{"$error":"#VALUE!"},{"$error":"#VALUE!"},"Цена без НДС"]
[null,null,"50","ЛИЦЕВАЯ КОЖА","ТЭП","КОЖА","ТЕРМОПЛАСТ","КЛЕЕВОЙ","39-47",1090,9.2372881355932204E-2,923.72881355932202,46.462000000000003,null,null,null,null,null,null,null,null,null,null,null,null,null,null,null,null,null,null,null,null,null,null,null,null,null,null,null,null,null,null,43.02]
[null,null,"51",null,null,null,null,null,null,1065,9.02542372881356E-2,902.54237288135596,45.402999999999999,null,null,null,null,null,null,null,null,null,null,null,null,null,null,null,null,null,null,null,null,null,null,null,null,null,null,null,null,null,null,42.04]
[null,null,"52","ЛИЦЕВАЯ КОЖА","ТЭП","КОЖА","ТЕРМОПЛАСТ","КЛЕЕВОЙ","39-47",1165,9.8728813559322032E-2,987.28813559322032,49.658000000000001,null,null,null,null,null,null,null,null,null,null,null,null,null,null,null,null,null,null,null,null,null,null,null,null,null,null,null,null,null,null,45.98]
[null,null,"52/1","ЛИЦЕВАЯ КОЖА (ЛАК)",null,null,null,null,null,1280,0.10847457627118644,1084.7457627118645,54.561999999999998,null,null,null,null,null,null,null,null,null,null,null,null,null,null,null,null,null,null,null,null,null,null,null,null,null,null,null,null,null,null,50.52]
[null,null,"53","ЛИЦЕВАЯ КОЖА",null,"CAMBRELLE","ТЕРМОПЛАСТ","КЛЕЕПРОШИВ","39-47",1175,9.9576271186440676E-2,995.76271186440681,50.09,null,null,null,null,null,null,null,null,null,null,null,null,null,null,null,null,null,null,null,null,null,null,null,null,null,null,null,null,null,null,46.38]
[null,null,"54","ЛИЦЕВАЯ КОЖА","ТЭП","КОЖА","ТЕРМОПЛАСТ","КЛЕЕВОЙ","36-47",1300,0.11016949152542373,1101.6949152542372,55.414999999999999,null,null,null,null,null,null,null,null,null,null,null,null,null,null,null,null,null,null,null,null,null,null,null,null,null,null,null,null,null,null,51.31]
[null,null,"55","МИКРОФИБРА (ЛАК)","ТЭП","КОЖА","ТЕРМОПЛАСТ","КЛЕЕВОЙ","39-47",1280,0.10847457627118644,1084.7457627118645,54.561999999999998,null,null,null,null,null,null,null,null,null,null,null,null,null,null,null,null,null,null,null,null,null,null,null,null,null,null,null,null,null,null,50.52]
[null,null,"56","МИКРОФИБРА (ЛАК)","РЕЗИНА","КОЖА","ТЕРМОПЛАСТ","КЛЕЕВОЙ","36-46",1380,0.11694915254237288,1169.4915254237289,58.828000000000003,null,null,null,null,null,null,null,null,null,null,null,null,null,null,null,null,null,null,null,null,null,null,null,null,null,null,null,null,null,null,54.47]
[null,null,"58","ЛИЦЕВАЯ КОЖА","ТЭП","БАЙКА","ТЕРМОПЛАСТ","КЛЕЕВОЙ","39-46",1370,0.11610169491525424,1161.0169491525423,58.396000000000001,null,null,null,null,null,null,null,null,null,null,null,null,null,null,null,null,null,null,null,null,null,null,null,null,null,null,null,null,null,null,54.07]
[null,null,"58М",null,null,"ИСК МЕХ",null,null,null,1405,0.11906779661016949,1190.6779661016949,59.896999999999998,null,null,null,null,null,null,null,null,null,null,null,null,null,null,null,null,null,null,null,null,null,null,null,null,null,null,null,null,null,null,55.46]
[null,null,"58НМ",null,null,"НАТ МЕХ",null,null,null,1840,0.15593220338983052,1559.3220338983051,78.44,null,null,null,null,null,null,null,null,null,null,null,null,null,null,null,null,null,null,null,null,null,null,null,null,null,null,null,null,null,null,72.63]
[null,null,"58ТУ","ЛИЦЕВАЯ КОЖА","ТЭП","БАЙКА","ТЕРМОПЛАСТ","КЛЕЕВОЙ","39-46",1370,0.11610169491525424,1161.0169491525423,58.396000000000001,null,null,null,null,null,null,null,null,null,null,null,null,null,null,null,null,null,null,null,null,null,null,null,null,null,null,null,null,null,null,54.07]
[null,null,"58ТУМ",null,null,"ИСК МЕХ",null,null,null,1405,0.11906779661016949,1190.6779661016949,59.896999999999998,null,null,null,null,null,null,null,null,null,null,null,null,null,null,null,null,null,null,null,null,null,null,null,null,null,null,null,null,null,null,55.46]
[null,null,"58ТУНМ",null,null,"НАТ МЕХ",null,null,null,1840,0.15593220338983052,1559.3220338983051,78.44,null,null,null,null,null,null,null,null,null,null,null,null,null,null,null,null,null,null,null,null,null,null,null,null,null,null,null,null,null,null,72.63]
[null,null,"63","ЛИЦЕВАЯ КОЖА","ТЭП","САРЖА, КОЖА","ТЕРМОПЛАСТ","КЛЕЕВОЙ","39-47",1300,0.11016949152542373,1101.6949152542372,55.414999999999999,null,null,null,null,null,null,null,null,null,null,null,null,null,null,null,null,null,null,null,null,null,null,null,null,null,null,null,null,null,null,51.31]
[null,null,"67НМ","ЛИЦЕВАЯ КОЖА","ТЭП","НАТ МЕХ","ТЕРМОПЛАСТ","КЛЕЕВОЙ","39-47",1920,0.16271186440677965,1627.1186440677966,81.841999999999999,null,null,null,null,null,null,null,null,null,null,null,null,null,null,null,null,null,null,null,null,null,null,null,null,null,null,null,null,null,null,75.78]
[null,null,"59","ЛИЦЕВАЯ КОЖА","ТЭП","КОЖА","ТЕРМОПЛАСТ","КЛЕЕВОЙ","36-41",1570,0.13305084745762713,1330.5084745762713,66.927999999999997,null,null,null,null,null,null,null,null,null,null,null,null,null,null,null,null,null,null,null,null,null,null,null,null,null,null,null,null,null,null,61.97]
[null,null,"60","ЛИЦЕВАЯ КОЖА","ТЭП","ВОРСИН","ТЕРМОПЛАСТ","КЛЕЕВОЙ","36-42",500,4.2372881355932202E-2,423.72881355932202,21.318999999999999,null,null,null,null,null,null,null,null,null,null,null,null,null,null,null,null,null,null,null,null,null,null,null,null,null,null,null,null,null,null,19.739999999999998]
["Обувь для охотников, рыбаков, туристов",null,null,null,null,null,null,null,null,null,0,0]
[null,null,"модель","материал верха","подошва","подкладка","подносок","метод крепления","размеры",">500 пар",{"$error":"#VALUE!"},{"$error":"#VALUE!"}]
[null,null,"10","ТЕКСТИЛЬ","РЕЗИНА","Х/Б ТКАНЬ",null,"ЛИТЬЕВОЙ","40-46",615,5.2118644067796607E-2,521.18644067796606,26.212,null,null,null,null,null,null,null,null,null,null,null,null,null,null,null,null,null,null,null,null,null,null,null,null,null,null,null,null,null,null,24.27]
[null,null,180,"ТЕКСТИЛЬ","РЕЗИНА","Х/Б ТКАНЬ",null,"ЛИТЬЕВОЙ","40-46",550,4.6610169491525424E-2,466.10169491525426,23.446999999999999,null,null,null,null,null,null,null,null,null,null,null,null,null,null,null,null,null,null,null,null,null,null,null,null,null,null,null,null,null,null,21.71]
[null,null,181,"ТЕКСТИЛЬ","РЕЗИНА","Х/Б ТКАНЬ",null,"ЛИТЬЕВОЙ","40-46",550,4.6610169491525424E-2,{"$f":"K169*10000","v":466.10169491525426},23.446999999999999,null,null,null,null,null,null,null,null,null,null,null,null,null,null,null,null,null,null,null,null,null,null,null,null,null,null,null,null,null,null,21.71]
[null,null,"77\nSTRIKER","КОЖА \"КРАСТ\", CORDURA","ТПУ(ГАЛОША)\nРЕЗИНА","AIR THINSULATE",null,"КЛЕЕВОЙ","39-46",1725,0.1461864406779661,1461.8644067796611,73.537000000000006,null,null,null,null,null,null,null,null,null,null,null,null,null,null,null,null,null,null,null,null,null,null,null,null,null,null,null,null,null,null,68.09]
[null,null,"78\nFORESTER","КОЖА \"КРАСТ\", ТКАНЬ (КАМ)",null,null,null,null,null,1725,0.1461864406779661,1461.8644067796611,73.537000000000006,null,null,null,null,null,null,null,null,null,null,null,null,null,null,null,null,null,null,null,null,null,null,null,null,null,null,null,null,null,null,68.09]
[null,null,"161","ЗАМША, ПОЛИЭСТЕР (КАМ)","EVA/РЕЗИНА","МЕМБРАННАЯ ТКАНЬ","ГРАНИТОЛЬ","КЛЕЕВОЙ","39-47",2450,0.2076271186440678,2076.2711864406779,104.44,null,null,null,null,null,null,null,null,null,null,null,null,null,null,null,null,null,null,null,null,null,null,null,null,null,null,null,null,null,null,96.7]
[null,null,162,"НУБУК, ПОЛИЭСТЕР","EVA/РЕЗИНА","МЕМБРАННАЯ ТКАНЬ","ТЕРМОПЛАСТ","КЛЕЕВОЙ","39-47",2350,0.19915254237288135,1991.5254237288136,100.18,null,null,null,null,null,null,null,null,null,null,null,null,null,null,null,null,null,null,null,null,null,null,null,null,null,null,null,null,null,null,92.76]
[null,null,163,"НУБУК, ПОЛИЭСТЕР","EVA/РЕЗИНА","МЕМБРАННАЯ ТКАНЬ","ТЕРМОПЛАСТ","КЛЕЕВОЙ","39-47",2400,0.20338983050847459,2033.898305084746,102.31,null,null,null,null,null,null,null,null,null,null,null,null,null,null,null,null,null,null,null,null,null,null,null,null,null,null,null,null,null,null,94.73]
[null,null,168,"ТЕКСТИЛЬ","ПУ/РЕЗИНА","МЕМБРАННАЯ ТКАНЬ","ГРАНИТОЛЬ","КЛЕЕВОЙ","40-46",2400,0.20338983050847459,2033.898305084746,102.31,null,null,null,null,null,null,null,null,null,null,null,null,null,null,null,null,null,null,null,null,null,null,null,null,null,null,null,null,null,null,94.73]
[null,null,169,"ТЕКСТИЛЬ","ПУ/РЕЗИНА","МЕМБРАННАЯ ТКАНЬ","ГРАНИТОЛЬ","КЛЕЕВОЙ","40-46",2400,0.20338983050847459,2033.898305084746,102.31,null,null,null,null,null,null,null,null,null,null,null,null,null,null,null,null,null,null,null,null,null,null,null,null,null,null,null,null,null,null,94.73]
[null,null,"7099\nЛАДОГА","CORDURA","ЛИТАЯ РЕЗИНОВАЯ ГАЛОША","ДУПЛЕКС, ТРИКОТАЖ, ВКЛАДНОЙ ЧУЛОК",null,"СТРОЧЕЧНО-ЛИТЬЕВОЙ","40-46",1920,0.16271186440677965,1627.1186440677966,81.841999999999999,null,null,null,null,null,null,null,null,null,null,null,null,null,null,null,null,null,null,null,null,null,null,null,null,null,null,null,null,null,null,75.78]
[null,null,"12087","CORDURA, ПУ","EVA/РЕЗИНА","ТРИКОТАЖ, ПОРОЛОН, ВКЛАДНОЙ ЧУЛОК",null,"СТРОЧЕЧНО-ЛИТЬЕВОЙ","40-46",1910,0.16186440677966102,1618.6440677966102,81.421000000000006,null,null,null,null,null,null,null,null,null,null,null,null,null,null,null,null,null,null,null,null,null,null,null,null,null,null,null,null,null,null,75.39]
[null,null,"20М","ПУ ELASTOPAN","ПУ ELASTOPAN","СВАЛЯНАЯ ШЕРСТЬ, СИНТЕТИКА","НЕТ","ЛИТЬЕВОЙ","40-46",1850,0.15677966101694915,1567.7966101694915,78.861999999999995,null,null,null,null,null,null,null,null,null,null,null,null,null,null,null,null,null,null,null,null,null,null,null,null,null,null,null,null,null,null,73.02]

{"sheet":"ОБУВЬ ДЛЯ РАБОЧИХ","index":1,"n_rows":81,"n_cols":13,"rows_kept":81,"cut":false,"hidden":false,"merged":[[78,1,79,1],[69,1,76,1],[69,3,72,3],[69,4,72,4],[69,7,72,7],[64,7,66,7],[64,8,66,8],[69,8,72,8],[73,3,76,3],[73,4,76,4],[73,7,76,7],[73,8,76,8],[52,0,80,0],[52,1,52,12],[55,1,59,1],[55,3,59,3],[55,4,57,4],[55,7,59,7],[55,8,59,8],[58,4,59,4],[60,1,62,1],[60,3,62,3],[60,4,61,4],[60,7,62,7],[60,8,62,8],[64,1,66,1],[64,3,66,3],[64,4,66,4],[43,7,44,7],[43,8,44,8],[46,1,51,1],[46,3,51,3],[46,4,47,4],[46,6,51,6],[46,7,51,7],[46,8,51,8],[48,4,49,4],[50,4,51,4],[41,1,45,1],[41,3,42,3],[41,4,42,4],[43,3,44,3],[43,4,44,4],[35,1,38,1],[35,3,38,3],[35,5,38,5],[35,7,38,7],[35,8,38,8],[26,1,28,1],[26,3,28,3],[26,7,28,7],[26,8,28,8],[31,1,34,1],[31,3,34,3],[31,5,34,5],[31,7,34,7],[31,8,34,8],[20,1,24,1],[20,3,24,3],[20,4,21,4],[20,6,23,6],[20,7,23,7],[20,8,23,8],[22,4,23,4],[14,3,16,3],[14,4,16,4],[14,7,16,7],[14,8,16,8],[17,3,19,3],[17,4,19,4],[17,6,18,6],[17,7,19,7],[17,8,19,8],[0,0,0,12],[1,0,50,0],[1,1,1,12],[4,1,19,1],[4,3,7,3],[4,4,7,4],[4,5,5,5],[4,7,7,7],[4,8,7,8],[6,5,7,5],[8,3,13,3],[8,4,13,4],[8,5,10,5],[8,7,13,7],[8,8,13,8],[11,5,13,5]]}
["Обувь для рабочих"]
["Серия \"Стандарт\"","Серия \"Стандарт\""]
[null,"Ботинки"]
[null,null,"модель","материал верха","подошва","подкладка","подносок","метод крепления","размеры",">500 пар","100-500пар","50-100 пар","<50 пар"]
[null,null,"12","КОЖА","ПУ","MESH","МЕТАЛЛ","ЛИТЬЕВОЙ","36-47",600,620,640,670]
[null,null,"13",null,null,null,"ТЕРМОПЛАСТ",null,null,565,585,605,635]
[null,null,"14",null,null,"ИСК МЕХ","МЕТАЛЛ",null,null,645,665,685,715]
[null,null,"13М",null,null,null,"ТЕРМОПЛАСТ",null,null,630,650,670,700]
[null,null,"12/1","КОЖА","ПУ/ПУ","MESH","МЕТАЛЛ","ЛИТЬЕВОЙ","36-47",650,670,690,720]
[null,null,"12/1К",null,null,null,"КОМПОЗИТ",null,null,710,730,750,780]
[null,null,"13/1",null,null,null,"ТЕРМОПЛАСТ",null,null,605,625,645,675]
[null,null,"14/1",null,null,"ИСК МЕХ","МЕТАЛЛ",null,null,695,715,735,765]
[null,null,"14/1К",null,null,null,"КОМПОЗИТ",null,null,755,775,795,825]
[null,null,"13/1М",null,null,null,"ТЕРМОПЛАСТ",null,null,705,725,745,775]
[null,null,"12Т","КОЖА","ПУ/ТПУ","MESH","МЕТАЛЛ","ЛИТЬЕВОЙ","37-47",745,765,785,815]
[null,null,"13Т",null,null,"MESH","ТЕРМОПЛАСТ",null,null,700,720,740,770]
[null,null,"14Т",null,null,"ИСК МЕХ","МЕТАЛЛ",null,null,805,825,845,875]
[null,null,"12Р","КОЖА","ПУ/НИТРИЛ","MESH","МЕТАЛЛ","ЛИТЬЕВОЙ","37-47",785,805,825,855]
[null,null,"14Р",null,null,"ИСК МЕХ",null,null,null,860,880,900,930]
[null,null,"112РНМ",null,null,"НАТ МЕХ","КОМПОЗИТ",null,null,1610,1630,1650,1680]
[null,null,"28","КОЖА","ПУ","MESH","МЕТАЛЛ","ЛИТЬЕВОЙ","36-47",705,725,745,775]
[null,null,"28М",null,null,"ИСК МЕХ",null,null,null,755,775,795,825]
[null,null,"28/1",null,"ПУ/ПУ","MESH",null,null,null,785,805,825,855]
[null,null,"28/1М",null,null,"ИСК МЕХ",null,null,null,835,855,875,905]
[null,null,"28РНМ-1",null,"НИТРИЛ","ШЕРСТИН","КОМПОЗИТ","ЛИТЬЕВОЙ","37-47",1110,1130,1150,1180]
[null,null,"24","КОЖА","ПУ/НИТРИЛ","CAMBRELLE","МЕТАЛЛ","ЛИТЬЕВОЙ","40-47",935,955,975,1005]
[null,null,"29","КОЖА","ПУ","CAMBRELLE","МЕТАЛЛ","ЛИТЬЕВОЙ","39-47",985,1005,1025,1055]
[null,null,"29-0",null,"ПУ","CAMBRELLE","ТЕРМОПЛАСТ",null,null,955,975,995,1025]
[null,null,"29РНМ-1",null,"ПУ/НИТРИЛ","ШЕРСТИН","МЕТАЛЛ",null,null,1460,1480,1500,1530]
[null,"Полуботинки, сандалии"]
[null,null,"модель","материал верха","подошва","подкладка","подносок","метод крепления","размеры",">500 пар","100-500пар","50-100 пар","<50 пар"]
[null,null,23,"КОЖА","ПУ","3D AIR-MESH","МЕТАЛЛ","ЛИТЬЕВОЙ","36-47",630,650,670,700]
[null,null,"23-0",null,"ПУ",null,"ТЕРМОПЛАСТ",null,null,610,630,650,680]
[null,null,"23/1",null,"ПУ/ПУ",null,"МЕТАЛЛ",null,null,710,730,750,780]
[null,null,"23Т",null,"ПУ/ТПУ",null,"МЕТАЛЛ",null,null,775,795,815,845]
[null,null,"21                   ","КОЖА","ПУ","3D AIR-MESH","МЕТАЛЛ","ЛИТЬЕВОЙ","36-47",635,655,675,705]
[null,null,"21-0",null,"ПУ",null,"ТЕРМОПЛАСТ",null,null,600,620,640,670]
[null,null,"21/1",null,"ПУ/ПУ",null,"МЕТАЛЛ",null,null,715,735,755,785]
[null,null,"21Т",null,"ПУ/ТПУ",null,"МЕТАЛЛ",null,null,780,800,820,850]
[null,"Сапоги"]
[null,null,"модель","материал верха","подошва","подкладка","подносок","метод крепления","размеры",">500 пар","100-500пар","50-100 пар","<50 пар"]
[null,null,"15-0И","КОЖА,\nКИРЗА","ПУ",null,"ТЕРМОПЛАСТ",null,"39-47",645,665,685,715]
[null,null,"15-0М",null,null,"ИСК МЕХ","ТЕРМОПЛАСТ","ЛИТЬЕВОЙ","39-47",725,745,765,795]
[null,null,"15К","КОЖА,\nВИНИЛИСКОЖА","ПУ","CAMBRELLE","МЕТАЛЛ","ЛИТЬЕВОЙ","36-47",685,705,725,755]
[null,null,"15КМ",null,null,"ИСК МЕХ","МЕТАЛЛ",null,null,765,785,805,835]
[null,null,"15РНМ","КОЖА","ПУ/НИТРИЛ","НАТ МЕХ","КОМПОЗИТ","ЛИТЬЕВОЙ","39-47",1960,1980,2000,2030]
[null,null,"16","КОЖА","ПУ","MESH","МЕТАЛЛ","ЛИТЬЕВОЙ","36-47",870,890,910,940]
[null,null,"16М",null,null,"ИСК МЕХ",null,null,null,920,940,960,990]
[null,null,"16/1",null,"ПУ/ПУ","MESH",null,null,null,935,955,975,1005]
[null,null,"16/1М",null,null,"ИСК МЕХ",null,null,null,990,1010,1030,1060]
[null,null,"16Т",null,"ПУ/ТПУ","CAMBRELLE",null,null,null,1030,1050,1070,1100]
[null,null,"16ТМ",null,null,"ИСК МЕХ",null,null,null,1080,1100,1120,1150]
["Серия \"Профессионал\"","Серия \"Профессионал\""]
[null,"Ботинки"]
[null,null,"модель","материал верха","подошва","подкладка","подносок","метод крепления","размеры",">500 пар","100-500пар","50-100 пар","<50 пар"]
[null,null,"17","ЛИЦЕВА КОЖА,\nCORDURA","ПУ/ТПУ","CAMBRELLE","КОМПОЗИТ","ЛИТЬЕВОЙ","37-47",1315,1335,1355,1385]
[null,null,"17М",null,null,"ИСК МЕХ","КОМПОЗИТ",null,null,1370,1390,1410,1440]
[null,null,"17НМ",null,null,"НАТ МЕХ","КОМПОЗИТ",null,null,1805,1825,1845,1875]
[null,null,"17РМ",null,"ПУ/НИТРИЛ","ИСК МЕХ","КОМПОЗИТ",null,null,1415,1435,1455,1485]
[null,null,"17РНМ",null,null,"НАТ МЕХ","КОМПОЗИТ",null,null,1855,1875,1895,1925]
[null,null,"22Р","ЛИЦЕВАЯ КОЖА","ПУ/НИТРИЛ","MESH","МЕТАЛЛ","ЛИТЬЕВОЙ","37-47",1355,1375,1395,1425]
[null,null,"22РНМ",null,null,"НАТ МЕХ","КОМПОЗИТ",null,null,2205,2225,2245,2275]
[null,null,"22-0",null,"ПУ/ТПУ","MESH","ТЕРМОПЛАСТ",null,null,1175,1195,1215,1245]
[null,null,"26НМ","ЛИЦЕВАЯ КОЖА, ПОЛИЭСТЕР","ПУ/ТПУ","НАТ МЕХ","МЕТАЛЛ","ЛИТЬЕВОЙ","37-47",2095,2115,2135,2165]
[null,null,"27","ЛИЦЕВА КОЖА,\nCORDURA","ПУ/ТПУ","MESH","МЕТАЛЛ","ЛИТЬЕВОЙ","37-47",1395,1415,1435,1465]
[null,null,"27-0",null,null,"MESH","ТЕРМОПЛАСТ",null,null,1185,1205,1225,1255]
[null,null,"27М",null,null,"ИСК МЕХ","МЕТАЛЛ",null,null,1515,1535,1555,1585]
[null,"Сапоги"]
[null,null,"модель","материал верха","подошва","подкладка","подносок","метод крепления","размеры",">500 пар","100-500пар","50-100 пар","<50 пар"]
[null,null,"18","ЛИЦЕВАЯ КОЖА","ПУ/ТПУ","CAMBRELLE","КОМПОЗИТ","ЛИТЬЕВОЙ","37-47",1415,1435,1455,1485]
[null,null,"18М",null,null,"ИСК МЕХ","КОМПОЗИТ",null,null,1530,1550,1570,1600]
[null,null,"18НМ-1",null,null,"ШЕРСТИН","КОМПОЗИТ",null,null,1920,1940,1960,1990]
[null,null,"18НМ",null,null,"НАТ МЕХ","КОМПОЗИТ",null,null,2365,2385,2405,2435]
[null,null,"18Р","ЛИЦЕВАЯ КОЖА","ПУ/НИТРИЛ","CAMBRELLE","КОМПОЗИТ","ЛИТЬЕВОЙ","37-47",1465,1485,1505,1535]
[null,null,"18РМ",null,null,"ИСК МЕХ","КОМПОЗИТ",null,null,1650,1670,1690,1720]
[null,null,"18РНМ-1",null,null,"ШЕРСТИН","КОМПОЗИТ",null,null,1970,1990,2010,2040]
[null,null,"18РНМ",null,null,"НАТ МЕХ","КОМПОЗИТ",null,null,2485,2505,2525,2555]
[null,null,"20","ПУ ELASTOPAN","ПУ ELASTOPAN","ТРИКОТАЖ","МЕТАЛЛ","ЛИТЬЕВОЙ","40-46",925,945,965,995]
[null,null,"7042","CORDURA","ЛИТАЯ РЕЗИНОВАЯ ГАЛОША"," ВКЛАДНОЙ ЧУЛОК\n3М THINSULATE 400gr","МЕТАЛЛ","СТРОЧЕЧНО-ЛИТЬЕВОЙ","40-47",2725,2745,2765,2795]
[null,null,"7042К","CORDURA","ЛИТАЯ РЕЗИНОВАЯ ГАЛОША"," ВКЛАДНОЙ ЧУЛОК\n3М THINSULATE 400gr","КОМПОЗИТ","СТРОЧЕЧНО-ЛИТЬЕВОЙ","40-47",2810,2830,2850,2880]
[null,null,"7116","ТЕКСТИЛЬ CHECKER","ЛИТАЯ РЕЗИНОВАЯ ГАЛОША"," ВКЛАДНОЙ ЧУЛОК\n3М THINSULATE 400gr","КОМПОЗИТ","СТРОЧЕЧНО-ЛИТЬЕВОЙ","39-47",3015,3035,3055,3085]

{"sheet":"ОБУВЬ ДЛЯ СИЛОВЫХ СТРУКТУР","index":2,"n_rows":79,"n_cols":13,"rows_kept":79,"cut":false,"hidden":false,"merged":[[69,8,71,8],[69,1,71,1],[69,3,71,3],[69,4,71,4],[69,6,71,6],[69,7,71,7],[59,0,78,0],[59,1,59,12],[61,1,62,1],[61,3,62,3],[61,4,62,4],[63,1,64,1],[61,5,62,5],[61,6,62,6],[61,7,62,7],[61,8,62,8],[72,4,74,4],[72,6,74,6],[72,7,74,7],[72,8,74,8],[63,4,64,4],[63,5,64,5],[63,6,64,6],[63,7,64,7],[63,8,64,8],[52,6,54,6],[52,7,54,7],[52,8,54,8],[55,1,57,1],[55,4,57,4],[52,4,54,4],[52,1,54,1],[48,6,50,6],[48,7,50,7],[44,6,45,6],[39,6,41,6],[55,6,57,6],[55,7,57,7],[55,8,57,8],[46,0,58,0],[46,1,46,12],[48,1,50,1],[48,4,50,4],[48,5,50,5],[40,5,41,5],[42,1,43,1],[44,1,45,1],[44,4,45,4],[44,5,45,5],[34,0,45,0],[34,1,34,12],[36,1,38,1],[36,4,38,4],[36,5,38,5],[36,6,38,6],[36,7,38,7],[36,8,38,8],[39,1,41,1],[17,7,23,7],[17,8,19,8],[20,4,23,4],[20,8,23,8],[39,4,41,4],[24,7,27,7],[24,8,27,8],[26,3,27,3],[29,1,30,1],[29,3,30,3],[29,4,30,4],[29,6,30,6],[29,7,30,7],[29,8,30,8],[0,0,0,12],[1,1,1,12],[3,1,8,1],[3,3,5,3],[3,4,5,4],[3,6,5,6],[3,7,5,7],[3,8,5,8],[6,3,8,3],[6,4,8,4],[6,6,8,6],[6,7,8,7],[6,8,8,8],[1,0,30,0],[9,1,16,1],[14,3,16,3],[14,4,16,4],[14,6,16,6],[14,7,16,7],[24,1,27,1],[24,3,25,3],[24,4,27,4],[24,6,27,6],[9,3,13,3],[9,8,13,8],[31,1,33,1],[31,3,33,3],[31,4,33,4],[31,6,33,6],[31,7,33,7],[31,8,33,8],[72,1,74,1],[72,3,74,3],[39,7,41,7],[39,8,41,8],[40,3,41,3],[44,7,45,7],[44,8,45,8],[52,5,54,5],[49,8,50,8],[9,4,13,4],[9,6,13,6],[9,7,13,7],[14,8,16,8],[17,1,23,1],[17,3,23,3],[17,4,19,4],[17,6,23,6]]}
["Обувь для силовых структур"]
["Серия \"Витязь\"","Серия \"Витязь\""]
[null,null,"модель","материал верха","подошва","подкладка","подносок","метод крепления","размеры",">500 пар","100-500пар","50-100 пар","<50 пар"]
[null,null,"А1","ЛИЦЕВАЯ КОЖА","РЕЗИНА","CAMBRELLE","ТЕРМОПЛАСТ","КЛЕЕВОЙ","39-47",1505,1525,1545,1575]
[null,null,"А1М",null,null,"ИСК МЕХ",null,null,null,1610,1630,1650,1680]
[null,null,"А1НМ",null,null,"НАТ МЕХ",null,null,null,1980,1980,1980,1980]
[null,null,"А2","ЛИЦЕВАЯ КОЖА","РЕЗИНА","CAMBRELLE","ТЕРМОПЛАСТ","КЛЕЕВОЙ","39-47",1325,1345,1365,1395]
[null,null,"А2М",null,null,"ИСК МЕХ",null,null,null,1545,1565,1585,1615]
[null,null,"А2НМ",null,null,"НАТ МЕХ",null,null,null,1950,1970,1990,2020]
[null,null,65,"ЛИЦЕВАЯ КОЖА","РЕЗИНА","CAMBRELLE","ТЕРМОПЛАСТ","КЛЕЕПРОШИВ","39-47",1290,1310,1330,1360]
[null,null,"А65К",null,null,"КОЖА",null,null,null,1475,1495,1515,1545]
[null,null,"65НМ1",null,null,"ШЕРСТИН",null,null,null,1435,1455,1475,1505]
[null,null,"А65НМ",null,null,"НАТ МЕХ",null,null,null,1825,1845,1865,1895]
[null,null,"65М",null,null,"ИСК МЕХ",null,null,null,1370,1390,1410,1440]
[null,null,"64","КОЖА","ТЭП","СПАНБОНД","ТЕРМОПЛАСТ","КЛЕЕПРОШИВ","39-47",1060,1080,1100,1130]
[null,null,"64М",null,null,"ИСК МЕХ",null,null,null,1160,1180,1200,1230]
[null,null,"64НМ-1",null,null,"ШЕРСТИН",null,null,null,1225,1245,1265,1295]
[null,null,"68Т","ЛИЦЕВАЯ КОЖА","ТЭП \"TRACTION\"","CAMBRELLE","ТЕРМОПЛАСТ","КЛЕЕПРОШИВ","36-47",1290,1310,1330,1360]
[null,null,"68ТМ",null,null,"ИСК МЕХ",null,null,null,1335,1355,1375,1405]
[null,null,"68ТНМ",null,null,"НАТ МЕХ",null,null,null,1790,1810,1830,1860]
[null,null,"68У",null,"ТЭП \"RAMPON\"","CAMBRELLE",null,null,"39-47",1275,1295,1315,1345]
[null,null,"68",null,null,"CAMBRELLE",null,null,null,1205,1225,1245,1275]
[null,null,"68М",null,null,"ИСК МЕХ",null,null,null,1255,1275,1295,1325]
[null,null,"68НМ",null,null,"НАТ МЕХ",null,null,null,1745,1765,1785,1815]
[null,null,"А71","ЛИЦЕВАЯ КОЖА","РЕЗИНА","КОЖА","ТЕРМОПЛАСТ","КЛЕЕПРОШИВ","39-47",1545,1565,1585,1615]
[null,null,"А71НМ",null,null,"НАТ МЕХ",null,null,null,1895,1915,1935,1965]
[null,null,"А71К","КОЖА \"КРАСТ\"",null,"КОЖА",null,null,null,1715,1735,1755,1785]
[null,null,"А71КНМ",null,null,"НАТ МЕХ",null,null,null,2035,2055,2085,2135]
[null,null,"В03К","ЛИЦЕВАЯ КОЖА","РЕЗИНА","НЕТ","ТЕРМОПЛАСТ","КЛЕЕВОЕ","39-47",1580,1600,1620,1650]
[null,null,"Р005","ЛИЦЕВАЯ КОЖА","РЕЗИНА","КОЖА","ТЕРМОПЛАСТ","РАНТО-КЛЕЕВОЙ","39-47",1650,1670,1690,1720]
[null,null,"Р005НМ",null,null,"НАТ МЕХ",null,null,null,1930,1930,1930,1930]
[null,null,"62","ЛИЦЕВАЯ КОЖА","РЕЗИНА","CAMBRELLE","ТЕРМОПЛАСТ","КЛЕЕПРОШИВ","39-47",1120,1140,1160,1190]
[null,null,"62М",null,null,"ИСК МЕХ",null,null,null,1345,1365,1385,1415]
[null,null,"62НМ",null,null,"НАТ МЕХ",null,null,null,1570,1590,1610,1640]
["Серия \"Гвардия\"","Серия \"Гвардия\""]
[null,null,"модель","материал верха","подошва","подкладка","подносок","метод крепления","размеры",">500 пар","100-500пар","50-100 пар","<50 пар"]
[null,null,"48","КОЖА \"КРАСТ\", CORDURA","ПУ","CAMBRELLE","ТЕРМОПЛАСТ","КЛЕЕВОЙ","39-45",1355,1375,1395,1425]
[null,null,"048","ХРОМОВАЯ КОЖА, CORDURA",null,null,null,null,null,1355,1375,1395,1425]
[null,null,"49","КОЖА \"КРАСТ\", КОЖА",null,null,null,null,null,1380,1400,1420,1450]
[null,null,"138","ЗАМША, ПОЛИЭСТЕР","РЕЗИНА","CAMBRELLE","ГРАНИТОЛЬ","КЛЕЕВОЙ","39-47",1475,1495,1515,1545]
[null,null,"139","КОЖА, ПОЛИЭСТЕР",null,"CAMBRELLE, ПОРОЛОН",null,null,null,1475,1495,1515,1545]
[null,null,"140",null,null,null,null,null,null,1515,1535,1555,1585]
[null,null,"А105/1","КОЖА \"КРАСТ\"","РЕЗИНА","КОЖА","ТЕРМОПЛАСТ","КЛЕЕПРОШИВ","39-47",1965,1985,2005,2035]
[null,null,"А105/2НМ","КОЖА \"КРАСТ\"","РЕЗИНА","НАТ МЕХ","ТЕРМОПЛАСТ","КЛЕЕПРОШИВ","39-47",2305,2325,2355,2405]
[null,null,"А101","ЛИЦЕВАЯ КОЖА, CORDURA","ТЭП","CAMBRELLE","ТЕРМОПЛАСТ","КЛЕЕПРОШИВ","39-47",1400,1420,1440,1470]
[null,null,"А103","ЛИЦЕВАЯ КОЖА, CORDURA (КАМ)",null,null,null,null,null,1410,1430,1450,1480]
["Серия \"Полевые\"","Серия \"Полевые\""]
[null,null,"модель","материал верха","подошва","подкладка","подносок","метод крепления","размеры",">500 пар","100-500пар","50-100 пар","<50 пар"]
[null,null,"А107","ЛИЦЕВАЯ КОЖА, CORDURA","ТЭП","НЕТ","ТЕРМОПЛАСТ","КЛЕЕПРОШИВ","36-47",1165,1185,1205,1235]
[null,null,"А107/1","ЛИЦЕВАЯ КОЖА, ТКАНЬ (ЦИФРА)",null,null,null,null,"39-47",1215,1235,1255,1285]
[null,null,"А107/4","ЛИЦЕВАЯ КОЖА, CORDURA",null,null,null,null,null,1165,1185,1205,1235]
[null,null,"107Л","КОЖА","ПУ","НЕТ","ТЕРМОПЛАСТ","ЛИТЬЕВОЙ","39-47",830,850,870,900]
[null,null,"А61/5","ЛИЦЕВАЯ КОЖА, ТКАНЬ (ЦИФРА)","ТЭП","CAMBRELLE","ТЕРМОПЛАСТ","КЛЕЕПРОШИВ","39-47",1180,1200,1220,1250]
[null,null,"А61/51","ЛИЦЕВАЯ КОЖА, ТКАНЬ (КАМ)",null,null,null,null,null,1180,1200,1220,1250]
[null,null,"А61/6","ЛИЦЕВАЯ КОЖА, CORDURA",null,null,null,null,null,1160,1180,1200,1230]
[null,null,"198","КОЖА,\nCORDURA","РЕЗИНА","НЕТ","ТЕРМОПЛАСТ","ГОРЯЧАЯ ВУЛКАНИЗАЦИЯ","39-47",980,1000,1020,1050]
[null,null,"199","КОЖА",null,"НЕТ",null,null,null,1310,1330,1350,1380]
[null,null,"199М","ЛИЦЕВАЯ КОЖА",null,"ИСК МЕХ",null,null,null,1595,1615,1635,1665]
[null,null,"61/3","КОЖА, КИРЗА","СТИРОНИП",null,"ТЕРМОПЛАСТ","КЛЕЕПРОШИВ","39-47",865,885,905,935]
["Серия \"Офицер\"","Серия \"Офицер\""]
[null,null,"модель","материал верха","подошва","подкладка","подносок","метод крепления","размеры",">500 пар","100-500пар","50-100 пар","<50 пар"]
[null,null,"50","ЛИЦЕВАЯ КОЖА","ТЭП","КОЖА","ТЕРМОПЛАСТ","КЛЕЕВОЙ","39-47",1090,1110,1130,1160]
[null,null,"51",null,null,null,null,null,null,1065,1085,1105,1135]
[null,null,"52","ЛИЦЕВАЯ КОЖА","ТЭП","КОЖА","ТЕРМОПЛАСТ","КЛЕЕВОЙ","39-47",1165,1185,1205,1235]
[null,null,"52/1","ЛИЦЕВАЯ КОЖА (ЛАК)",null,null,null,null,null,1280,1300,1320,1350]
[null,null,"53","ЛИЦЕВАЯ КОЖА",null,"CAMBRELLE","ТЕРМОПЛАСТ","КЛЕЕПРОШИВ","39-47",1175,1195,1215,1245]
[null,null,"54","ЛИЦЕВАЯ КОЖА","ТЭП","КОЖА","ТЕРМОПЛАСТ","КЛЕЕВОЙ","36-47",1300,1320,1340,1370]
[null,null,"55","МИКРОФИБРА (ЛАК)","ТЭП","КОЖА","ТЕРМОПЛАСТ","КЛЕЕВОЙ","39-47",1280,1300,1320,1350]
[null,null,"56","МИКРОФИБРА (ЛАК)","РЕЗИНА","КОЖА","ТЕРМОПЛАСТ","КЛЕЕВОЙ","36-46",1380,1400,1420,1450]
[null,null,"58","ЛИЦЕВАЯ КОЖА","ТЭП","БАЙКА","ТЕРМОПЛАСТ","КЛЕЕВОЙ","39-46",1370,1390,1410,1440]
[null,null,"58М",null,null,"ИСК МЕХ",null,null,null,1405,1425,1445,1475]
[null,null,"58НМ",null,null,"НАТ МЕХ",null,null,null,1840,1860,1880,1910]
[null,null,"58ТУ","ЛИЦЕВАЯ КОЖА","ТЭП","БАЙКА","ТЕРМОПЛАСТ","КЛЕЕВОЙ","39-46",1370,1390,1410,1440]
[null,null,"58ТУМ",null,null,"ИСК МЕХ",null,null,null,1405,1425,1445,1475]
[null,null,"58ТУНМ",null,null,"НАТ МЕХ",null,null,null,1840,1860,1880,1910]
[null,null,"63","ЛИЦЕВАЯ КОЖА","ТЭП","САРЖА, КОЖА","ТЕРМОПЛАСТ","КЛЕЕВОЙ","39-47",1300,1320,1350,1380]
[null,null,"67НМ","ЛИЦЕВАЯ КОЖА","ТЭП","НАТ МЕХ","ТЕРМОПЛАСТ","КЛЕЕВОЙ","39-47",1920,1940,1970,2000]
[null,null,"59","ЛИЦЕВАЯ КОЖА","ТЭП","КОЖА","ТЕРМОПЛАСТ","КЛЕЕВОЙ","36-41",1570,1590,1610,1640]
[null,null,"60","ЛИЦЕВАЯ КОЖА","ТЭП","ВОРСИН","ТЕРМОПЛАСТ","КЛЕЕВОЙ","36-42",500,500,500,500]

{"sheet":"ОБУВЬ ДЛЯ ОХОТНИКОВ, ТУРИСТОВ","index":3,"n_rows":15,"n_cols":13,"rows_kept":15,"cut":false,"hidden":false,"merged":[[0,0,0,12],[1,0,14,0],[5,1,6,1],[5,4,6,4],[5,5,6,5],[5,6,6,6],[5,7,6,7],[5,8,6,8]]}
["Обувь для охотников, рыбаков, туристов"]
[null,null,"модель","материал верха","подошва","подкладка","подносок","метод крепления","размеры",">500 пар","100-500пар","50-100 пар","<50 пар"]
[null,null,"10","ТЕКСТИЛЬ","РЕЗИНА","Х/Б ТКАНЬ",null,"ЛИТЬЕВОЙ","40-46",615,635,655,685]
[null,null,180,"ТЕКСТИЛЬ","РЕЗИНА","Х/Б ТКАНЬ",null,"ЛИТЬЕВОЙ","40-46",550,570,590,620]
[null,null,181,"ТЕКСТИЛЬ","РЕЗИНА","Х/Б ТКАНЬ",null,"ЛИТЬЕВОЙ","40-46",550,570,590,620]
[null,null,"77\nSTRIKER","КОЖА \"КРАСТ\", CORDURA","ТПУ(ГАЛОША)\nРЕЗИНА","AIR THINSULATE",null,"КЛЕЕВОЙ","39-46",1725,1745,1765,1795]
[null,null,"78\nFORESTER","КОЖА \"КРАСТ\", ТКАНЬ (КАМ)",null,null,null,null,null,1725,1745,1765,1795]
[null,null,"161","ЗАМША, ПОЛИЭСТЕР (КАМ)","EVA/РЕЗИНА","МЕМБРАННАЯ ТКАНЬ","ГРАНИТОЛЬ","КЛЕЕВОЙ","39-47",2450,2470,2500,2550]
[null,null,162,"НУБУК, ПОЛИЭСТЕР","EVA/РЕЗИНА","МЕМБРАННАЯ ТКАНЬ","ТЕРМОПЛАСТ","КЛЕЕВОЙ","39-47",2350,2370,2400,2450]
[null,null,163,"НУБУК, ПОЛИЭСТЕР","EVA/РЕЗИНА","МЕМБРАННАЯ ТКАНЬ","ТЕРМОПЛАСТ","КЛЕЕВОЙ","39-47",2400,2420,2450,2500]
[null,null,168,"ТЕКСТИЛЬ","ПУ/РЕЗИНА","МЕМБРАННАЯ ТКАНЬ","ГРАНИТОЛЬ","КЛЕЕВОЙ","40-46",2400,2420,2450,2480]
[null,null,169,"ТЕКСТИЛЬ","ПУ/РЕЗИНА","МЕМБРАННАЯ ТКАНЬ","ГРАНИТОЛЬ","КЛЕЕВОЙ","40-46",2400,2420,2450,2480]
[null,null,"7099\nЛАДОГА","CORDURA","ЛИТАЯ РЕЗИНОВАЯ ГАЛОША","ДУПЛЕКС, ТРИКОТАЖ, ВКЛАДНОЙ ЧУЛОК",null,"СТРОЧЕЧНО-ЛИТЬЕВОЙ","40-46",1920,1940,1960,1990]
[null,null,"12087","CORDURA, ПУ","EVA/РЕЗИНА","ТРИКОТАЖ, ПОРОЛОН, ВКЛАДНОЙ ЧУЛОК",null,"СТРОЧЕЧНО-ЛИТЬЕВОЙ","40-46",1910,1930,1950,1980]
[null,null,"20М","ПУ ELASTOPAN","ПУ ELASTOPAN","СВАЛЯНАЯ ШЕРСТЬ, СИНТЕТИКА","НЕТ","ЛИТЬЕВОЙ","40-46",1850,1850,1850,1850]